Workbook

Sheet Page1
E2: Capital Adequacy (CA) Return for British Columbia Credit Unions
D3: [Enter Credit Union Name] | G3: Credit Union
E4: as at [Date]
C5: Line | G5: Annual Financial & Statistical Return
C6: # | D6: Account Name | E6: $ Amount | G6: (AFSR) Line Numbers & Instructions
B7: SUMMARY
C9: 900 | D9: Capital Base | E9: =E53 -> 0 | F9: l | G9: ="CA Return Line "&C53&" from below" -> CA Return Line 132 from below
C10: 901 | D10: Total Risk Weighted Assets (RWA) | E10: =Page3!H60 -> 0 | F10: l | G10: ="CA Return Line "&Page3!C60&" from Page 3" -> CA Return Line 316 from Page 3
C11: 902 | D11: Capital Adequacy Ratio - % | E11: =IF(E9=0," ",E9/E10) ->  | F11: l | G11: Capital Base divided by RWA
B13: CAPITAL BASE
C14: Primary Capital
C15: 101 | D15: Equity Shares - Membership | F15: l | G15: 2191
C16: =C15+1 -> 102 | D16: Equity Shares - Investment, Net of Discount | F16: l | G16: 2192 less 2193
C17: =C16+1 -> 103 | D17: Equity Shares - Transaction, Net of Discount | F17: l | G17: 2194 less 2195
C18: 104 | D18: Equity Shares - Preferred, Net of Discount | F18: l | G18: 2196 less 2197
C19: 105 | D19: Equity Shares - Other, Net of Discount | F19: l | G19: 2198 less 2199
C20: 106 | D20: CUDIC / SCCU Subordinated Debt, Net of Discount | F20: l | G20: 2250 less 2255
C21: 107 | D21: Credit Union's Retained Earnings | F21: l | G21: 2230
C22: =C21+1 -> 108 | D22: Deferred Income Tax (Asset)/Liability | F22: l | G22: add 2240 or deduct 1390
C23: 109 | D23: Contributed Surplus | F23: l | G23: 2208
C24: =C23+1 -> 110 | D24: Other Primary Capital | F24: l | G24: 2260
C25: =C24+1 -> 111 | D25: Dividends to be Paid as Primary Capital | F25: l | G25: 2270
C26: =C25+1 -> 112 | D26: Total Primary Capital | E26: =SUM(E15:E25) -> 0 | F26: l | G26: ="sum of CA Return Lines "&C15&" to "&C25 -> sum of CA Return Lines 101 to 111
C27: Secondary Capital
C28: =C26+1 -> 113 | D28: Proportion of System Retained Earnings x 50% | F28: l | G28: provided by FICOM
C29: =C28+1 -> 114 | D29: Equity Shares - Investment, Net of Discount | F29: l | G29: 2271 less 2272
C30: 115 | D30: Equity Shares - Transaction, Net of Discount | F30: l | G30: 2273 less 2274
C31: 116 | D31: Equity Shares - Preferred, Net of Discount | F31: l | G31: 2276 less 2277
C32: 117 | D32: Equity Shares - Other, Net of Discount | F32: l | G32: 2278 less 2279
C33: 118 | D33: Other Debt Capital, Net of Discount | F33: l | G33: 2290 less 2295
C34: 119 | D34: Other Secondary Capital | F34: l | G34: 2296
C35: 120 | D35: Dividends to be Paid as Secondary Capital | F35: l | G35: 2300
C36: 121 | D36: Total Secondary Capital | E36: =SUM(E28:E35) -> 0 | F36: l | G36: ="sum of CA Return Lines "&C28&" to "&C35 -> sum of CA Return Lines 113 to 120
C37: 122 | D37: Total Eligible Secondary Capital | E37: =IF(E36>E26,E26,E36) -> 0 | F37: l | G37: ="lesser of CA Return Lines "&C36&" and "&C26 -> lesser of CA Return Lines 121 and 112
C38: Deductions from Capital
C39: =C37+1 -> 123 | D39: Goodwill and Other Intangible Assets (Incl. in Inv. Value) | F39: l | G39: included in 6300
C40: =C39+1 -> 124 | D40: Goodwill and Other Intangible Assets (Not Incl. in Inv. Value) | F40: l | G40: included in 6300
C41: =C40+1 -> 125 | D41: Investment - Banks, Trust or Deposit Business | F41: l | G41: included in 6310
C42: =C41+1 -> 126 | D42: Invest. - Insurance Business, Venture Cap. Corp., etc. | F42: l | G42: included in 6310
C43: 127 | D43: Excess Investment in Prescribed Businesses | F43: l | G43: 6320
C44: 128 | D44: Other | F44: l | G44: 6330
C45: 129 | D45: Total Deductions from Capital | E45: =SUM(E39:E44) -> 0 | F45: l | G45: ="CA Return Lines "&C39&" to "&C44 -> CA Return Lines 123 to 128
C47: =C45+1 -> 130 | D47: Total Capital Available | E47: =+E26+E37-E45 -> 0 | F47: l | G47: ="CA Return Lines "&C26&" plus "&C37&" less "&C45 -> CA Return Lines 112 plus 122 less 129
C49: =C47+1 -> 131 | D49: CU Ret. Earnings plus Cont. Surplus divided by 35% | E49: =IF(E21=" "," ",(E21+E23)/0.35) ->  | F49: l | G49: ="sum of CA Return Lines "&C21&" and "&C23&" divided by 35%" -> sum of CA Return Lines 107 and 109 divided by 35%
C51: ="Capital Base is the Lesser of Line "&C47&" or Line "&C49&":" -> Capital Base is the Lesser of Line 130 or Line 131:
C53: =C49+1 -> 132 | D53: CAPITAL BASE | E53: =+MIN(E47,E49) -> 0 | F53: l | G53: ="lesser of CA Return Lines "&C47&" or "&C49 -> lesser of CA Return Lines 130 or 131

Sheet Page2
F2: Capital Adequacy (CA) Return for British Columbia Credit Unions
D3: [Enter Credit Union Name] | I3: Credit Union
E4: as at [Date]
C5: Line | E5: Unweighted | F5: Risk | G5: Risk Weighted | I5: Annual Financial & Statistical Return
C6: # | D6: Account Name | E6: $ Amount x | F6: Factor | G6: = $ Value | I6: (AFSR) Line Numbers & Instructions
B7: BALANCE SHEET ASSETS
C8: Cash, Liquidity & Other Investments | H8: Unweighted Column Reference
C9: 201 | D9: Cash | F9: 0 | G9: =IF(E9=" "," ",E9*F9) ->  | H9: l | I9: 1010
C10: =C9+1 -> 202 | D10: Central 1 - Operating Account | F10: 0 | H10: l | I10: 1020 plus 1090*
C11: =C10+1 -> 203 | D11: Central 1 - Deposits | F11: 0 | H11: l | I11: 1030 plus 1090* plus 1097**
C12: =C11+1 -> 204 | D12: Guaranteed Security Instruments | F12: 0 | G12: =IF(E12=" "," ",E12*F12) ->  | H12: l | I12: 1040 plus 1090* plus 1097**
C13: =C12+1 -> 205 | D13: Other Deposits | F13: 0.2 | H13: l | I13: 1050 plus 1090* plus 1097**
C14: =C13+1 -> 206 | D14: Debt Security Instruments | F14: 0.2 | H14: l | I14: 1060 plus 1090* plus 1097**
C15: Commercial Paper:
C16: =C14+1 -> 207 | D16: AAA to AA (low) or R1 (high) | F16: 0.2 | H16: l | I16: 1070 plus 1090* plus 1097**
C17: =C16+1 -> 208 | D17: A (high) to A (low) or R1 (middle) | F17: 0.5 | H17: l | I17: 1071 plus 1090* plus 1097**
C18: =C17+1 -> 209 | D18: BBB (high) to BB (low) or R1 (low) to R2 (low) / Unrated | F18: 1 | H18: l | I18: 1072 plus 1090* plus 1097**
C19: =C18+1 -> 210 | D19: Below BB (low) or Below R2 (low) | F19: 1.5 | H19: l | I19: 1073 plus 1090* plus 1097**
C21: 247 | D21: Securities Secured by Mortgages: Guaranteed by CMHC | F21: 0 | G21: =IF(E21=" "," ",E21*F21) ->  | H21: l | I21: 1078 plus 1090* plus 1097**
C22: 248 | D22: Securities Secured by Mortgages: Other | F22: 1 | H22: l | I22: 1079 plus 1090* plus 1097**
C23: 214 | D23: Other Liquidity Investments | F23: 1 | H23: l | I23: 1080 plus 1090* plus 1097**
C24: =C23+1 -> 215 | D24: CU Centrals Equity Shares & CUDIC Deb. | F24: 1 | H24: l | I24: 1140
C25: =C24+1 -> 216 | D25: Total Cash, Liquidity & Other Invest. | E25: =SUM(E9:E24) -> 0 | G25: =SUM(G9:G24) -> 0 | H25: l | I25: ="1100 plus 1140 or sum of CA Return Lines "&C9&" to "&C24 -> 1100 plus 1140 or sum of CA Return Lines 201 to 215
C26: Loans & Leases
C27: =C25+1 -> 217 | D27: Pers. R/E Secured: Insured | F27: 0 | G27: =IF(E27=" "," ",E27*F27) ->  | H27: l | I27: 1150 plus 1290* plus 1300**
C28: =C27+1 -> 218 | D28: Comm. R/E Secured: Insured | F28: 0 | G28: =IF(E28=" "," ",E28*F28) ->  | H28: l | I28: 1210 plus 1290* plus 1310**
C29: =C28+1 -> 219 | D29: Securitizations: Pers. & Comm. R/E Secured: Insured | F29: 0 | H29: l | I29: 1284 plus 1286 plus 1290* plus 1300** plus 1310**
C30: Personal R/E Res. ≤ 75% of FMV:
C31: =C29+1 -> 220 | D31: Current or Past Due ≤ 90 Days, Net of Prov. | F31: 0.35 | G31: =IF(E31=" "," ",E31*F31) ->  | H31: l | I31: included in 1160 and in 1288 plus 1290* plus 1300**
C32: 222 | D32: Past Due > 90 Days, Net of Spec. Prov. ≥ 20% | F32: 0.5 | G32: =IF(E32=" "," ",E32*F32) ->  | H32: l | I32: included in 1160 and in 1288 plus 1290* plus 1300**
C33: =C32+1 -> 223 | D33: Past Due > 90 Days, Net of Spec. Prov. < 20% | F33: 1 | G33: =IF(E33=" "," ",E33*F33) ->  | H33: l | I33: included in 1160 and in 1288 plus 1290* plus 1300**
C34: All Other Loans & Leases - Current or Past Due ≤ 90 Days, Net of Provision and Past Due > 90 Days, Secured Portion:
C35: =C33+1 -> 224 | D35: Fully Sec. by Dep. with DTI or OECD Central Bank | F35: 0.2 | G35: =IF(E35=" "," ",E35*F35) ->  | H35: l | I35: included in 1180 plus 1250 plus 1290* plus 1300** plus 1310**
C36: =C35+1 -> 225 | D36: Guar. By Gov't or Fully Sec. by Dep. & Gov't Sec. | F36: 0 | G36: =IF(E36=" "," ",E36*F36) ->  | H36: l | I36: included in 1180 plus 1250 plus 1290* plus 1300** plus 1310**
C37: 226 | D37: Comm. Unsecured: Governments & Municipalities | F37: 0 | H37: l | I37: 1270 plus 1290* plus 1310**
C38: 227 | D38: Pers. R/E Res. >75% of FMV | F38: 0.75 | G38: =IF(E38=" "," ",E38*F38) ->  | H38: l | I38: included in 1170 and in 1288 plus 1290* plus 1300**
C39: 228 | D39: Pers. Otherwise Sec: Leases | F39: 0.75 | G39: =IF(E39=" "," ",E39*F39) ->  | H39: l | I39: 1187 plus 1290* plus 1300**
C40: 229 | D40: Pers. Otherwise Sec: All Others | F40: 0.75 | H40: l | I40: 1190 plus 1290* plus 1300**
C41: 230 | D41: Pers. Unsecured | F41: 0.75 | H41: l | I41: 1200 plus 1290* plus 1300**
C42: =C41+1 -> 231 | D42: Comm. R/E Res. ≤ 75% of FMV | F42: 0.35 | G42: =IF(E42=" "," ",E42*F42) ->  | H42: l | I42: included in 1220 plus 1290* plus 1310**
C43: 232 | D43: Other Commercial Loans & Leases | F43: 1 | G43: =IF(E43=" "," ",E43*F43) ->  | H43: l | I43: sum (incl. in 1220,1230,1240,1257,1260,1280,1289,1290*) plus 1310**
C44: All Other Loans & Leases - Past Due > 90 Days, Unsecured Portion, Net of Specific Provision:
C45: =C43+1 -> 233 | D45: Net of Specific Provision ≥ 20% | F45: 1 | G45: =IF(E45=" "," ",E45*F45) ->  | H45: l | I45: ="split between CA Return Lines "&$C$35&" to "&$C$43 -> split between CA Return Lines 224 to 232
C46: =C45+1 -> 234 | D46: Net of Specific Provision < 20% | F46: 1.5 | G46: =IF(E46=" "," ",E46*F46) ->  | H46: l | I46: ="split between CA Return Lines "&$C$35&" to "&$C$43 -> split between CA Return Lines 224 to 232
C47: =C46+1 -> 235 | D47: Total Loans & Leases | E47: =SUM(E27:E46) -> 0 | G47: =SUM(G27:G46) -> 0 | H47: l | I47: ="1320 or sum of CA Return Lines "&C27&" to "&C46 -> 1320 or sum of CA Return Lines 217 to 234
C48: Other Assets
C49: =C47+1 -> 236 | D49: Premises & Equipment - Net | F49: 1 | G49: =IF(E49=" "," ",E49*F49) ->  | H49: l | I49: ="1330 less assets incl. in CA Return Line "&C54 -> 1330 less assets incl. in CA Return Line 241
C50: =C49+1 -> 237 | D50: Prop. Acq. in Settle. of Loans & Leases - Net | F50: 1 | H50: l | I50: 1350
C51: 238 | D51: Prop. Held for Investments - Net | F51: 1.5 | H51: l | I51: 1360
C52: 239 | D52: Equity Investments <10% Ownership | F52: 1 | G52: =IF(E52=" "," ",E52*F52) ->  | H52: l | I52: ="1370 less assets incl. in CA Return Line "&C54 -> 1370 less assets incl. in CA Return Line 241
C53: 240 | D53: Equity Investments ≥10% Ownership | F53: 1 | H53: l | I53: ="1380 less assets incl. in CA Return Line "&C54 -> 1380 less assets incl. in CA Return Line 241
C54: 241 | D54: Deductions from Capital | F54: 0 | H54: l | I54: ="sum of CA Return Lines "&Page1!C39&" to "&Page1!C42 -> sum of CA Return Lines 123 to 126
C55: 242 | D55: Derivative Financial Instruments | F55: 0 | H55: l | I55: 1407
C56: 243 | D56: Deferred Income Tax Debit | F56: 1 | H56: l | I56: 1390
C57: 244 | D57: All Other Assets | F57: 1 | G57: =IF(E57=" "," ",E57*F57) ->  | H57: l | I57: 1410
C58: 245 | D58: Total Other Assets | E58: =SUM(E49:E57) -> 0 | G58: =SUM(G49:G57) -> 0 | H58: l | I58: ="1420 or sum of CA Return Lines "&C49&" to "&C57 -> 1420 or sum of CA Return Lines 236 to 244
C60: =C58+1 -> 246 | D60: TOTAL ASSETS | E60: =+E25+E47+E58 -> 0 | G60: =+G25+G47+G58 -> 0 | H60: l | I60: ="1430 or sum of CA Return Lines "&C25&", "&C47&", "&C58 -> 1430 or sum of CA Return Lines 216, 235, 245
I61: * includes accrued interest allocation
I62: ** includes allowance allocation

Sheet Page3
F2: Capital Adequacy (CA) Return
G3: for British Columbia Credit Unions
D4: [Enter Credit Union Name] | I4: Credit Union
F5: as at [Date]
C6: Line | F6: Unweighted | H6: Credit Conversion | J6: On Balance Sheet | L6: Risk Weighted
C7: # | D7: Account Name | F7: $ Amount | G7: x | H7: Factor | I7: x | J7: Risk Weight | K7: = | L7: $ Value
B8: OFF BALANCE SHEET EXPOSURES
C10: 301 | D10: Guarantees of Indebtedness | G10: x | H10: 1 | I10: x | K10: = | L10: =IF(F10=" "," ",F10*H10*J10) -> 
C11: 302 | D11: Letters of Credit | G11: x | I11: x | K11: =
C12: 303 | D12: Performance and Bid Bonds | G12: x | H12: 0.5 | I12: x | K12: =
C13: 304 | D13: Commitments (Unconditionally Cancellable) | G13: x | H13: 0 | I13: x | K13: =
C14: =C13+1 -> 305 | D14: Commitments (Orig. Mat. ≤ 1 Year) | G14: x | H14: 0.2 | I14: x | K14: =
C15: 306 | D15: Commitments (Orig. Mat. > 1 Year) | G15: x | H15: 0.5 | I15: x | K15: =
C16: 307 | D16: Other (specify) | G16: x | I16: x | K16: =
C17: 308 | D17: Interest Rate Contracts | F17: >>>>>>>>>>>>>>>> calculate below >>>>>>>>>>>>>>>>>>> | L17: =L31 -> 0
C18: 309 | D18: Foreign Exchange Rate Contracts | F18: >>>>>>>>>>>>>>>> calculate below >>>>>>>>>>>>>>>>>>> | L18: =L43 -> 0
C19: 310 | D19: TOTAL OFF BALANCE SHEET EXPOSURES | L19: =SUM(L10:L18) -> 0
C21: Interest Rate Contracts (i.e. SWAPS, Forward Rate Agreements, Swaptions, etc.)
H22: Credit | J22: Off-Balance Sheet | L22: Risk
H23: Conversion | J23: Risk Weight | L23: Weighted
C24: Counterparty | E24: [ Positive Market Value | F24: + (Notional Principal | G24: x | H24: Factor )] | I24: x | J24: of Counterparty * | K24: = | L24: $ Value
C25: Central 1 | G25: x | H25: 0.005 | I25: x | J25: 0 | K25: = | L25: =IF(F25=" "," ",(E25+(F25*H25))*J25) -> 
C26: Banks | G26: x | H26: 0.005 | I26: x | J26: 0.2 | K26: = | L26: =IF(F26=" "," ",(E26+(F26*H26))*J26) -> 
G27: x | I27: x | K27: = | L27: 0
G28: x | I28: x | K28: = | L28: 0
G29: x | I29: x | K29: =
G30: x | I30: x | K30: =
C31: * if Central 1 is the counterparty and transfers default risk of swap | K31: ="Total Interest Rate Contracts (To Line "&C17&")" -> Total Interest Rate Contracts (To Line 308) | L31: =SUM(L25:L30) -> 0
C32: with Bank back to credit union then a risk weight of 0.2 would apply
C33: Foreign Exchange Rate Contracts (i.e. Cross Currency Swaps, FX Forwards, etc.)
H34: Credit | J34: Off-Balance Sheet | L34: Risk
H35: Conversion | J35: Risk Weight | L35: Weighted
C36: Counterparty | E36: [ Positive Market Value | F36: + (Notional Principal | G36: x | H36: Factor )] | I36: x | J36: of Counterparty * | K36: = | L36: $ Value
C37: Central 1 | G37: x | H37: 0.005 | I37: x | J37: 0 | K37: = | L37: =IF(F37=" "," ",(E37+(F37*H37))*J37) -> 
C38: Banks | G38: x | H38: 0.005 | I38: x | J38: 0.2 | K38: =
G39: x | I39: x | K39: = | L39: 0
G40: x | I40: x | K40: = | L40: 0
G41: x | I41: x | K41: =
G42: x | I42: x | K42: =
C43: * if Central 1 is the counterparty and transfers default risk of swap | K43: ="Total FX Rate Contracts (To Line "&C18&")" -> Total FX Rate Contracts (To Line 309) | L43: =SUM(L37:L42) -> 0
C44: with Bank back to credit union then a risk weight of 0.2 would apply
C46: Line | F46: Unweighted | G46: Risk | H46: Risk Weighted | J46: Annual Financial & Statistical Return
C47: # | D47: Account Name | F47: $ Amount x | G47: Factor | H47: = $ Value | J47: (AFSR) Line Numbers & Instructions
B48: RISK WEIGHTED ASSETS
C50: BALANCE SHEET ASSETS - RISK WEIGHTED | H50: =Page2!G60 -> 0 | I50: l | J50: ="CA Return Line "&Page2!C60&" from Page 2" -> CA Return Line 246 from Page 2
C51: OFF BALANCE SHEET EXPOSURES | H51: =Page3!L19 -> 0 | I51: l | J51: ="4510 or CA Return Line "&C19&" above" -> 4510 or CA Return Line 310 above
C52: Concentration Risk Adjustments:
C53: 317 | D53: Excess Comm. Loans & Leases (>30% & ≤35%) | G53: 0.5 | H53: =IF(F53=" "," ",F53*G53) ->  | I53: l | J53: (sum (1220,1230,1240,1257,1260,1280,1289,1290*) plus 1310) exceeding 30% up to 35% of 1430
C54: =C19+1 -> 311 | D54: Excess Comm. Loans & Leases (>35%) | G54: 1 | H54: =IF(F54=" "," ",F54*G54) ->  | I54: l | J54: (sum (1220,1230,1240,1257,1260,1280,1289,1290*) plus 1310) exceeding 35% of 1430
C55: =C54+1 -> 312 | D55: Excess Investment in Land | G55: 1 | H55: =IF(F55=" "," ",F55*G55) ->  | I55: l | J55: 1360 exceeding 5% of 1430
C56: =C55+1 -> 313 | D56: Excess Inv. in Single Land Parcels | G56: 1 | H56: =IF(F56=" "," ",F56*G56) ->  | I56: l | J56: 4520 exceeding 1% of 1430
C57: =C56+1 -> 314 | D57: Excess 3rd & Subsequent Mortgages | G57: 1 | H57: =IF(F57=" "," ",F57*G57) ->  | I57: l | J57: 3rd & Sub. Mtgs. exceeding 2% of 1430
C58: =C57+1 -> 315 | D58: Total Concentration Risk Adj. | F58: =SUM(F53:F57) -> 0 | H58: =SUM(H53:H57) -> 0 | I58: l | J58: ="sum of CA Return Lines "&C53&", "&C54&" to "&C57 -> sum of CA Return Lines 317, 311 to 314
J59: * includes accrued interest allocation
C60: =C58+1 -> 316 | D60: TOTAL RISK WEIGHTED ASSETS | H60: =SUM(H50,H51,H58) -> 0 | I60: l | J60: ="sum of CA Return Lines "&Page2!C60&", "&C19&", "&C58 -> sum of CA Return Lines 246, 310, 315

Sheet Print
A1: NOTE: Macros must be enabled first before printing
A4: Step 1 | B4: a) | C4: If a Security Warning bar appears above this worksheet (similar to the one shown below)
C5: indicating "Macros have been disabled," proceed to Step 2
B12: b) | C12: If no Security Warning bar appears above this worksheet,
C13: proceed to Step 4
A16: Step 2 | C16: Press the "Options..." button on the Security Warning bar that appears above this worksheet,
C17: and a Security Alert - Macro window will pop up.
A19: Step 3 | C19: On the Security Alert - Macro window, select "Enable this content" and click "OK."
C20: The Security Warning Bar and the Security Alert - Macro window will both disappear.
A22: Step 4 | C22: Click the "Print CA Return" button below:
